fUSD/lending_fUSD_20250530
["ID","MTS","AMOUNT","RATE_DAILY","PERIOD"]
[363146593,1748598648512,-501.46856912,0.00021973,2]
[363146594,1748598648522,-639.46098401,0.00021973,2]
[363146595,1748598648533,-159.57068991,0.00021973,2]
[363146596,1748598648543,-500.0,0.00021973,2]
[363146597,1748598648553,-160.30334547,0.00021973,2]
[363146598,1748598648563,-159.57815874,0.00021973,2]
[363146599,1748598648572,-500.0,0.00021973,2]
[363146600,1748598648584,-502.24751098,0.00021973,2]
[363146601,1748598648595,-500.0,0.00021973,2]
[363146602,1748598648605,-216.20260541,0.00021973,2]
[363146603,1748598648615,-501.36825752,0.00021973,2]
[363146604,1748598648636,-159.57919208,0.00021973,2]
[363146605,1748598648647,-500.76877422,0.00021973,2]
[363146606,1748598648658,-436.72921279,0.00021973,2]
[363146607,1748598648667,-170.06346039,0.00021973,2]
[363146608,1748598648677,-159.58238895,0.00021973,2]
[363146609,1748598648687,-159.56950675,0.00021973,2]
[363146610,1748598648696,-164.95176813,0.00021973,2]
[363146611,1748598648707,-159.532442,0.00021973,2]
[363146612,1748598648717,-500.0,0.00021973,2]
[363146613,1748598648726,-500.0,0.00021973,2]
[363146614,1748598648736,-500.0,0.00021973,2]
[363146615,1748598648747,-208.63092654,0.00021973,2]
[363146616,1748598648759,-159.54064977,0.00021973,2]
[363146617,1748598648769,-365.61741876,0.00021973,2]
[363146618,1748598648781,-500.0,0.00021973,2]
[363146619,1748598648795,-500.0,0.00021973,2]
[363146620,1748598648807,-500.0,0.00021973,2]
[363146621,1748598648817,-500.0,0.00021973,2]
[363146622,1748598648828,-500.0,0.00021973,2]
[363146623,1748598648838,-265.65280946,0.00021973,2]
[363146624,1748598648847,-500.0,0.00021973,2]
[363146625,1748598648858,-500.0,0.00021973,2]
[363146626,1748598648869,-500.0,0.00021973,2]
[363146627,1748598648879,-1587.893,0.00021973,2]
[363146628,1748598648893,-240.0,0.00021974,2]
[363146629,1748598648903,-812.60848476,0.00021978,2]
[363146630,1748598648912,-1238.972712,0.0002198,3]
[363146631,1748598648922,-6656.04245345,0.00021987,2]
[363146632,1748598648931,-27952.41468225,0.00021987,2]
[363146633,1748598648941,-150.0,0.00021999,2]
[363146634,1748598648951,-534.0,0.00021999,2]
[363146635,1748598648960,-500.0,0.00021999,2]
[363146636,1748598648970,-537.57535686,0.00021999,2]
[363146637,1748598648979,-150.0,0.00021999,2]
[363146638,1748598648990,-1164.0,0.00021999,2]
[363146639,1748598648999,-150.0,0.00021999,2]
[363146640,1748598649009,-500.0,0.00021999,2]
[363146641,1748598649018,-200.0,0.00022,7]
[363146642,1748598649027,-1000.24717881,0.00022,4]
[363146643,1748598649040,-972.45047859,0.00022,3]
[363146644,1748598649049,-194.0,0.00022,3]
[363146645,1748598649059,-166.0,0.00022,2]
[363146646,1748598649070,-181.0,0.00022,2]
[363146647,1748598649080,-4085.66164941,0.00022,6]
[363146648,1748598649090,-812.60848476,0.00022005,2]
[363146649,1748598649100,-989.27223219,0.00022014,2]
[363146650,1748598649110,-250.0,0.00022027,2]
[363146651,1748598649120,-534.0,0.00022027,2]
[363146652,1748598649130,-500.0,0.00022027,2]
[363146653,1748598649139,-250.0,0.00022027,2]
[363146654,1748598649149,-1164.0,0.00022027,2]
[363146655,1748598649159,-250.0,0.00022027,2]
[363146656,1748598649169,-500.0,0.00022027,2]
[363146657,1748598649179,-500.0,0.00022027,2]
[363146658,1748598649189,-812.60848476,0.00022032,2]
[363146659,1748598649199,-6656.04245345,0.00022044,2]
[363146660,1748598649209,-27952.41468225,0.00022044,2]
[363146661,1748598649218,-534.0,0.00022054,2]
[363146662,1748598649227,-500.0,0.00022054,2]
[363146663,1748598649237,-1164.0,0.00022054,2]
[363146664,1748598649247,-500.0,0.00022054,2]
[363146665,1748598649257,-226.42,0.00022055,2]
[363146666,1748598649267,-806.64,0.00022055,2]
[363146667,1748598649276,-545.28,0.00022055,2]
[363146668,1748598649288,-812.60848476,0.00022059,2]
[363146669,1748598649297,-420.0,0.0002206,2]
[363146670,1748598649307,-8263.48252436,0.00022077,2]
[363146671,1748598649317,-534.0,0.00022081,2]
[363146672,1748598649327,-500.0,0.00022081,2]
[363146673,1748598649337,-1164.0,0.00022081,2]
[363146674,1748598649347,-500.0,0.00022081,2]
[363146675,1748598649356,-812.60848476,0.00022086,2]
[363146676,1748598649366,-220.40905224,0.00022091,2]
[363146677,1748598649376,-138085.939214,0.000221,2]
[363146678,1748598649386,-200.0,0.000221,2]
[363146679,1748598649396,-6656.04245345,0.00022101,2]
[363146680,1748598649406,-27952.41468225,0.00022101,2]
[363146681,1748598649415,-4085.66164921,0.00022107,6]
[363146682,1748598649426,-534.0,0.00022109,2]
[363146683,1748598649435,-500.0,0.00022109,2]
[363146684,1748598649445,-1164.0,0.00022109,2]
[363146685,1748598649455,-500.0,0.00022109,2]
[363146686,1748598649464,-812.60848476,0.00022113,2]
[363146687,1748598649473,-534.0,0.00022136,2]
[363146688,1748598649483,-500.0,0.00022136,2]
[363146689,1748598649493,-1164.0,0.00022136,2]
[363146690,1748598649502,-500.0,0.00022136,2]
[363146691,1748598649512,-812.60848476,0.0002214,2]
[363146692,1748598649522,-2250.790575,0.00022148,3]
[363146693,1748598649531,-6656.04245345,0.00022158,2]
[363146694,1748598649544,-27952.41468225,0.00022158,2]
[363146695,1748598649554,-534.0,0.00022164,2]
[363146696,1748598649564,-500.0,0.00022164,2]
[363146697,1748598649573,-1164.0,0.00022164,2]
[363146698,1748598649583,-500.0,0.00022164,2]
[363146699,1748598649593,-812.60848476,0.00022167,2]
[363146700,1748598649603,-607.0,0.0002217,2]
[363146701,1748598649613,-500.0,0.00022173,2]
[363146702,1748598649623,-500.0,0.00022173,2]
[363146703,1748598649633,-159.57199504,0.00022173,2]
[363146704,1748598649643,-546.95711903,0.00022173,2]
[363146705,1748598649653,-532.03377022,0.00022173,2]
[363146706,1748598649663,-359.05901085,0.00022173,2]
[363146707,1748598649673,-500.0,0.00022173,2]
[363146708,1748598649683,-500.0,0.00022173,2]
[363146709,1748598649692,-503.59646341,0.00022173,2]
[363146710,1748598649702,-500.0,0.00022173,2]
[363146711,1748598649711,-266.58196687,0.00022173,2]
[363146712,1748598650293,-233.41803313,0.00022173,2]
[363146713,1748598650303,-500.0,0.00022173,2]
[363146714,1748598650313,-500.0,0.00022173,2]
[363146715,1748598650322,-500.0,0.00022173,2]
[363146716,1748598650332,-1181.62749211,0.0002219,2]
[363146717,1748598650342,-167.42224185,0.0002219,2]
[363146718,1748598650353,-500.0,0.0002219,2]
[363146719,1748598650363,-205.00155224,0.0002219,2]
[363146720,1748598650372,-234.78842422,0.0002219,2]
[363146721,1748598650382,-500.0,0.0002219,2]
[363146722,1748598650392,-500.0,0.0002219,2]
[363146723,1748598650401,-500.0,0.0002219,2]
[363146724,1748598650411,-847.15946128,0.0002219,2]
[363146725,1748598650421,-300.0,0.0002219,2]
[363146726,1748598650430,-300.0,0.0002219,2]
[363146727,1748598650439,-300.0,0.0002219,2]
[363146728,1748598650449,-300.0,0.0002219,2]
[363146729,1748598650458,-300.0,0.0002219,2]
[363146730,1748598650467,-300.0,0.0002219,2]
[363146731,1748598650477,-289.83696654,0.0002219,2]
[363146732,1748598650486,-1126.94411215,0.00022191,2]
[363146733,1748598650495,-534.0,0.00022191,2]
[363146734,1748598650505,-500.0,0.00022191,2]
[363146735,1748598650514,-1164.0,0.00022191,2]
[363146736,1748598650523,-500.0,0.00022191,2]
[363146737,1748598650533,-153.95629477,0.00022191,2]
[363146738,1748598650545,-428.05,0.00022191,2]
[363146739,1748598650554,-498.92,0.00022191,2]
[363146740,1748598650563,-420.0,0.00022191,2]
[363146741,1748598650573,-420.0,0.00022191,2]
[363146742,1748598650583,-500.0,0.00022191,2]
[363146743,1748598650592,-281.85046119,0.00022191,2]
[363146744,1748598650602,-160.0,0.00022191,2]
[363146745,1748598650611,-500.74,0.00022191,2]
[363146746,1748598650620,-661.92,0.00022191,2]
[363146747,1748598650830,-151.0,0.00022191,2]
[363146748,1748598650879,-420.0,0.00022191,2]
[363146749,1748598650888,-211.13,0.00022191,2]
[363146750,1748598650897,-356.58,0.00022191,2]
[363146751,1748598650906,-677.77,0.00022191,2]
[363146752,1748598650916,-736.33,0.00022191,2]
[363146753,1748598650925,-420.0,0.00022191,2]
[363146754,1748598650934,-265.89094165,0.00022191,2]
[363146755,1748598650957,-254.43499209,0.00022191,2]
[363146756,1748598650966,-420.0,0.00022191,2]
[363146757,1748598650975,-95.45513035,0.00022191,2]
[363146758,1748598651009,-324.54486965,0.00022191,2]
[363146759,1748598651019,-446.62,0.00022191,2]
[363146760,1748598651028,-420.0,0.00022191,2]
[363146761,1748598651039,-629.58,0.00022191,2]
[363146762,1748598651048,-420.0,0.00022191,2]
[363146763,1748598651058,-420.0,0.00022191,2]
[363146764,1748598651067,-570.51,0.00022191,2]
[363146765,1748598651077,-507.06,0.00022191,2]
[363146766,1748598651086,-420.0,0.00022191,2]
[363146767,1748598651096,-420.0,0.00022191,2]
[363146768,1748598651108,-420.0,0.00022191,2]
[363146769,1748598651117,-296.52098804,0.00022191,2]
[363146770,1748598651130,-123.47901196,0.00022191,2]
[363146771,1748598651139,-420.0,0.00022191,2]
[363146772,1748598651149,-113.19098804,0.00022191,2]
[363146773,1748598651160,-384.00901196,0.00022191,2]
[363146774,1748598651170,-420.0,0.00022191,2]
[363146775,1748598651179,-501.69,0.00022191,2]
[363146776,1748598651190,-432.28,0.00022191,2]
[363146777,1748598651199,-420.0,0.00022191,2]
[363146778,1748598651209,-434.03,0.00022191,2]
[363146779,1748598651219,-550.59,0.00022191,2]
[363146780,1748598651228,-510.59,0.00022191,2]
[363146781,1748598651237,-420.0,0.00022191,2]
[363146782,1748598651247,-420.0,0.00022191,2]
[363146783,1748598651256,-420.0,0.00022191,2]
[363146784,1748598651265,-420.0,0.00022191,2]
[363146785,1748598651275,-420.0,0.00022191,2]
[363146786,1748598651285,-617.77,0.00022191,2]
[363146787,1748598651296,-524.3,0.00022191,2]
[363146788,1748598651305,-420.0,0.00022191,2]
[363146789,1748598651315,-420.0,0.00022191,2]
[363146790,1748598651325,-420.0,0.00022191,2]
[363146791,1748598651335,-511.25,0.00022191,2]
[363146792,1748598651345,-420.0,0.00022191,2]
[363146793,1748598651354,-420.0,0.00022191,2]
[363146794,1748598651364,-653.66,0.00022191,2]
[363146795,1748598651374,-420.0,0.00022191,2]
[363146796,1748598651383,-420.0,0.00022191,2]
[363146797,1748598651393,-420.0,0.00022191,2]
[363146798,1748598651403,-420.0,0.00022191,2]
[363146799,1748598651412,-420.0,0.00022191,2]
[363146800,1748598651422,-420.0,0.00022191,2]
[363146801,1748598651431,-634.84,0.00022191,2]
[363146802,1748598651441,-420.0,0.00022191,2]
[363146803,1748598651450,-1599.64,0.00022191,2]
[363146804,1748598651459,-420.0,0.00022191,2]
[363146805,1748598651471,-509.75,0.00022191,2]
[363146806,1748598651481,-936.95,0.00022191,2]
[363146807,1748598651489,-420.0,0.00022191,2]
[363146808,1748598651497,-420.0,0.00022191,2]
[363146809,1748598651506,-646.27,0.00022191,2]
[363146810,1748598651514,-522.38,0.00022191,2]
[363146811,1748598651522,-420.0,0.00022191,2]
[363146812,1748598651531,-1063.97,0.00022191,2]
[363146813,1748598651541,-420.0,0.00022191,2]
[363146814,1748598651550,-1348.25,0.00022191,2]
[363146815,1748598651560,-494.34,0.00022191,2]
[363146816,1748598651571,-313.07184445,0.00022191,2]
[363146817,1748598651582,-853.43,0.00022191,2]
[363146818,1748598651591,-420.0,0.00022191,2]
[363146819,1748598651600,-298.44938816,0.00022191,2]
[363146820,1748598651609,-574.44,0.00022191,2]
[363146821,1748598651618,-530.0,0.00022191,2]
[363146822,1748598651627,-420.0,0.00022191,2]
[363146823,1748598651636,-863.3,0.00022191,2]
[363146824,1748598651645,-420.0,0.00022191,2]
[363146825,1748598651654,-1282.86,0.00022191,2]
[363146826,1748598651662,-420.0,0.00022191,2]
[363146827,1748598651671,-1049.15,0.00022191,2]
[363146828,1748598651681,-420.0,0.00022191,2]
[363146829,1748598651690,-1012.17,0.00022191,2]
[363146830,1748598651699,-420.0,0.00022191,2]
[363146831,1748598651709,-420.0,0.00022191,2]
[363146832,1748598651718,-420.0,0.00022191,2]
[363146833,1748598651727,-160.0,0.00022191,2]
[363146834,1748598651737,-173.60756922,0.00022191,2]
[363146835,1748598651747,-986.29,0.00022191,2]
[363146836,1748598651758,-337.6136464,0.00022191,2]
[363146837,1748598651768,-420.0,0.00022191,2]
[363146838,1748598651778,-627.22,0.00022191,2]
[363146839,1748598651787,-420.0,0.00022191,2]
[363146840,1748598651799,-432.17,0.00022191,2]
[363146841,1748598651808,-780.91,0.00022191,2]
[363146842,1748598651818,-420.0,0.00022191,2]
[363146843,1748598651827,-1357.94,0.00022191,2]
[363146844,1748598651838,-420.0,0.00022191,2]
[363146845,1748598651848,-420.0,0.00022191,2]
[363146846,1748598651858,-167.0341979,0.00022191,2]
[363146847,1748598651867,-420.0,0.00022191,2]
[363146848,1748598651877,-698.71,0.00022191,2]
[363146849,1748598651886,-420.0,0.00022191,2]
[363146850,1748598651895,-844.03,0.00022191,2]
[363146851,1748598651905,-1080.03,0.00022191,2]
[363146852,1748598651914,-490.02969079,0.00022191,2]
[363146853,1748598651933,-366.40030921,0.00022191,2]
[363146854,1748598651943,-420.0,0.00022191,2]
[363146855,1748598651952,-393.30300329,0.00022191,2]
[363146856,1748598651961,-438.43,0.00022191,2]
[363146857,1748598651970,-1395.14,0.00022191,2]
[363146858,1748598651980,-1709.67,0.00022191,2]
[363146859,1748598651989,-420.0,0.00022191,2]
[363146860,1748598651998,-161.73947135,0.00022191,2]
[363146861,1748598652008,-620.71,0.00022191,2]
[363146862,1748598652018,-500.24,0.00022191,2]
[363146863,1748598652027,-1309.73,0.00022191,2]
[363146864,1748598652037,-614.15,0.00022191,2]
[363146865,1748598652048,-627.17,0.00022191,2]
[363146866,1748598652057,-160.0,0.00022191,2]
[363146867,1748598652067,-471.22,0.00022191,2]
[363146868,1748598652076,-160.0,0.00022191,2]
[363146869,1748598652085,-617.98,0.00022191,2]
[363146870,1748598652095,-568.38,0.00022191,2]
[363146871,1748598652105,-420.0,0.00022191,2]
[363146872,1748598652115,-774.86,0.00022191,2]
[363146873,1748598652124,-420.0,0.00022191,2]
[363146874,1748598652134,-968.3,0.00022191,2]
[363146875,1748598652143,-420.0,0.00022191,2]
[363146876,1748598652153,-160.0,0.00022191,2]
[363146877,1748598652163,-1462.19,0.00022191,2]
[363146878,1748598652172,-629.12,0.00022191,2]
[363146879,1748598652182,-420.0,0.00022191,2]
[363146880,1748598652191,-249.88045561,0.00022191,2]
[363146881,1748598652200,-1103.55,0.00022191,2]
[363146882,1748598652209,-747.14,0.00022191,2]
[363146883,1748598652219,-772.09,0.00022191,2]
[363146884,1748598652229,-1029.71,0.00022191,2]
[363146885,1748598652238,-162.51453005,0.00022191,2]
[363146886,1748598652248,-1251.44,0.00022191,2]
[363146887,1748598652257,-312.20838336,0.00022191,2]
[363146888,1748598652267,-717.05,0.00022191,2]
[363146889,1748598652276,-420.0,0.00022191,2]
[363146890,1748598652286,-167.21496154,0.00022191,2]
[363146891,1748598652297,-679.99,0.00022191,2]
[363146892,1748598652307,-420.0,0.00022191,2]
[363146893,1748598652316,-1450.08,0.00022191,2]
[363146894,1748598652326,-741.41,0.00022191,2]
[363146895,1748598652335,-167.57326758,0.00022191,2]
[363146896,1748598652344,-542.37,0.00022191,2]
[363146897,1748598652354,-160.0,0.00022191,2]
[363146898,1748598652363,-600.76,0.00022191,2]
[363146899,1748598652373,-572.0,0.00022191,2]
[363146900,1748598652383,-420.0,0.00022191,2]
[363146901,1748598652393,-420.0,0.00022191,2]
[363146902,1748598652402,-420.0,0.00022191,2]
[363146903,1748598652421,-890.85,0.00022191,2]
[363146904,1748598652440,-420.0,0.00022191,2]
[363146905,1748598652454,-420.0,0.00022191,2]
[363146906,1748598652472,-420.0,0.00022191,2]
[363146907,1748598652489,-420.0,0.00022191,2]
[363146908,1748598652507,-482.51,0.00022191,2]
[363146909,1748598652521,-162.21278262,0.00022191,2]
[363146910,1748598652536,-1008.27,0.00022191,2]
[363146911,1748598652554,-797.87,0.00022191,2]
[363146912,1748598652576,-926.71,0.00022191,2]
[363146913,1748598652593,-1407.6,0.00022191,2]
[363146914,1748598652611,-1514.26,0.00022191,2]
[363146915,1748598652628,-420.0,0.00022191,2]
[363146916,1748598652645,-595.89,0.00022191,2]
[363146917,1748598652661,-162.92850732,0.00022191,2]
[363146918,1748598652678,-463.11110677,0.00022191,2]
[363146919,1748598652693,-805.23,0.00022191,2]
[363146920,1748598652706,-1198.63,0.00022191,2]
[363146921,1748598652722,-1251.16,0.00022191,2]
[363146922,1748598652738,-658.64,0.00022191,2]
[363146923,1748598652750,-897.63,0.00022191,2]
[363146924,1748598652770,-1396.64,0.00022191,2]
[363146925,1748598652784,-420.0,0.00022191,2]
[363146926,1748598652797,-420.0,0.00022191,2]
[363146927,1748598652811,-639.18,0.00022191,2]
[363146928,1748598652830,-420.0,0.00022191,2]
[363146929,1748598652845,-751.45,0.00022191,2]
[363146930,1748598652860,-420.0,0.00022191,2]
[363146931,1748598652875,-1804.75,0.00022191,2]
[363146932,1748598652889,-1289.24,0.00022191,2]
[363146933,1748598652903,-534.38,0.00022191,2]
[363146934,1748598652917,-655.29,0.00022191,2]
[363146935,1748598652932,-420.0,0.00022191,2]
[363146936,1748598652945,-546.13,0.00022191,2]
[363146937,1748598652960,-427.68,0.00022191,2]
[363146938,1748598652973,-867.02,0.00022191,2]
[363146939,1748598652987,-1742.42,0.00022191,2]
[363146940,1748598653001,-420.0,0.00022191,2]
[363146941,1748598653015,-623.08,0.00022191,2]
[363146942,1748598653029,-727.66,0.00022191,2]
[363146943,1748598653043,-1266.27,0.00022191,2]
[363146944,1748598653056,-420.0,0.00022191,2]
[363146945,1748598653070,-887.53,0.00022191,2]
[363146946,1748598653084,-1316.95,0.00022191,2]
[363146947,1748598653098,-1163.49,0.00022191,2]
[363146948,1748598653111,-490.3,0.00022191,2]
[363146949,1748598653125,-160.0,0.00022191,2]
[363146950,1748598653138,-420.0,0.00022191,2]
[363146951,1748598653152,-420.0,0.00022191,2]
[363146952,1748598653166,-497.8,0.00022191,2]
[363146953,1748598653180,-1195.25,0.00022191,2]
[363146954,1748598653193,-544.91,0.00022191,2]
[363146955,1748598653207,-1143.21,0.00022191,2]
[363146956,1748598653221,-847.99,0.00022191,2]
[363146957,1748598653234,-1404.67,0.00022191,2]
[363146958,1748598653248,-420.0,0.00022191,2]
[363146959,1748598653261,-897.94,0.00022191,2]
[363146960,1748598653275,-420.0,0.00022191,2]
[363146961,1748598653288,-626.43,0.00022191,2]
[363146962,1748598653302,-2362.12,0.00022191,2]
[363146963,1748598653316,-832.73,0.00022191,2]
[363146964,1748598653330,-506.25502807,0.00022191,2]
[363146965,1748598653344,-712.14,0.00022191,2]
[363146966,1748598653359,-420.0,0.00022191,2]
[363146967,1748598653373,-520.91,0.00022191,2]
[363146968,1748598653386,-504.18,0.00022191,2]
[363146969,1748598653401,-420.0,0.00022191,2]
[363146970,1748598653416,-420.0,0.00022191,2]
[363146971,1748598653429,-689.67,0.00022191,2]
[363146972,1748598653444,-352.24070201,0.00022191,2]
[363146973,1748598653457,-420.0,0.00022191,2]
[363146974,1748598653471,-725.43,0.00022191,2]
[363146975,1748598653484,-556.37,0.00022191,2]
[363146976,1748598653498,-420.0,0.00022191,2]
[363146977,1748598653511,-161.7080137,0.00022191,2]
[363146978,1748598653525,-609.89,0.00022191,2]
[363146979,1748598653538,-420.0,0.00022191,2]
[363146980,1748598653552,-420.0,0.00022191,2]
[363146981,1748598653565,-420.0,0.00022191,2]
[363146982,1748598653578,-605.26,0.00022191,2]
[363146983,1748598653592,-420.0,0.00022191,2]
[363146984,1748598653605,-803.76,0.00022191,2]
[363146985,1748598653619,-2145.35,0.00022191,2]
[363146986,1748598653632,-420.0,0.00022191,2]
[363146987,1748598653647,-420.0,0.00022191,2]
[363146988,1748598653660,-420.0,0.00022191,2]
[363146989,1748598653674,-528.02,0.00022191,2]
[363146990,1748598653688,-1185.84,0.00022191,2]
[363146991,1748598653702,-631.37,0.00022191,2]
[363146992,1748598653716,-532.92,0.00022191,2]
[363146993,1748598653730,-420.0,0.00022191,2]
[363146994,1748598653743,-420.0,0.00022191,2]
[363146995,1748598653758,-519.49,0.00022191,2]
[363146996,1748598653775,-420.0,0.00022191,2]
[363146997,1748598653789,-162.73495877,0.00022191,2]
[363146998,1748598653803,-420.0,0.00022191,2]
[363146999,1748598653818,-428.75,0.00022191,2]
[363147000,1748598653832,-420.0,0.00022191,2]
[363147001,1748598653845,-887.28,0.00022191,2]
[363147002,1748598653860,-160.0,0.00022191,2]
[363147003,1748598653874,-1563.68,0.00022191,2]
[363147004,1748598653888,-420.0,0.00022191,2]
[363147005,1748598653902,-160.0,0.00022191,2]
[363147006,1748598653916,-437.79,0.00022191,2]
[363147007,1748598653930,-420.0,0.00022191,2]
[363147008,1748598653944,-366.34003844,0.00022191,2]
[363147009,1748598653957,-768.19,0.00022191,2]
[363147010,1748598653971,-162.57829259,0.00022191,2]
[363147011,1748598653983,-420.0,0.00022191,2]
[363147012,1748598653997,-420.0,0.00022191,2]
[363147013,1748598654010,-591.07,0.00022191,2]
[363147014,1748598654024,-511.89,0.00022191,2]
[363147015,1748598654038,-651.61,0.00022191,2]
[363147016,1748598654053,-943.69,0.00022191,2]
[363147017,1748598654067,-654.96,0.00022191,2]
[363147018,1748598654081,-603.03,0.00022191,2]
[363147019,1748598654094,-431.41,0.00022191,2]
[363147020,1748598654108,-162.07205776,0.00022191,2]
[363147021,1748598654122,-420.0,0.00022191,2]
[363147022,1748598654136,-448.92,0.00022191,2]
[363147023,1748598654150,-420.0,0.00022191,2]
[363147024,1748598654163,-554.98,0.00022191,2]
[363147025,1748598654177,-695.63,0.00022191,2]
[363147026,1748598654189,-420.0,0.00022191,2]
[363147027,1748598654199,-420.0,0.00022191,2]
[363147028,1748598654208,-783.64,0.00022191,2]
[363147029,1748598654218,-1326.04,0.00022191,2]
[363147030,1748598654228,-1044.41,0.00022191,2]
[363147031,1748598654238,-604.59,0.00022191,2]
[363147032,1748598654247,-420.0,0.00022191,2]
[363147033,1748598654257,-877.64,0.00022191,2]
[363147034,1748598654267,-420.0,0.00022191,2]
[363147035,1748598654277,-596.17,0.00022191,2]
[363147036,1748598654286,-1015.33,0.00022191,2]
[363147037,1748598654297,-420.0,0.00022191,2]
[363147038,1748598654307,-420.0,0.00022191,2]
[363147039,1748598654317,-620.88,0.00022191,2]
[363147040,1748598654326,-420.0,0.00022191,2]
[363147041,1748598654336,-1923.88,0.00022191,2]
[363147042,1748598654346,-551.13,0.00022191,2]
[363147043,1748598654356,-420.0,0.00022191,2]
[363147044,1748598654366,-1108.49,0.00022191,2]
[363147045,1748598654375,-164.14711311,0.00022191,2]
[363147046,1748598654385,-1548.53,0.00022191,2]
[363147047,1748598654395,-156.5,0.00022191,2]
[363147048,1748598654405,-1503.49,0.00022191,2]
[363147049,1748598654415,-420.0,0.00022191,2]
[363147050,1748598654425,-420.0,0.00022191,2]
[363147051,1748598654435,-420.0,0.00022191,2]
[363147052,1748598654444,-420.0,0.00022191,2]
[363147053,1748598654454,-436.81,0.00022191,2]
[363147054,1748598654464,-420.0,0.00022191,2]
[363147055,1748598654474,-420.0,0.00022191,2]
[363147056,1748598654485,-420.0,0.00022191,2]
[363147057,1748598654494,-420.0,0.00022191,2]
[363147058,1748598654504,-420.0,0.00022191,2]
[363147059,1748598654514,-423.54,0.00022191,2]
[363147060,1748598654524,-420.0,0.00022191,2]
[363147061,1748598655001,-500.0,0.00022191,2]
[363147062,1748598655041,-884.49,0.00022191,2]
[363147063,1748598655067,-420.0,0.00022191,2]
[363147064,1748598655083,-420.0,0.00022191,2]
[363147065,1748598655093,-1261.44,0.00022191,2]
[363147066,1748598655103,-420.0,0.00022191,2]
[363147067,1748598655113,-420.0,0.00022191,2]
[363147068,1748598655123,-420.0,0.00022191,2]
[363147069,1748598655133,-580.2,0.00022191,2]
[363147070,1748598655143,-420.0,0.00022191,2]
[363147071,1748598655153,-420.0,0.00022191,2]
[363147072,1748598655163,-420.0,0.00022191,2]
[363147073,1748598655172,-1363.71,0.00022191,2]
[363147074,1748598655182,-552.95,0.00022191,2]
[363147075,1748598655193,-558.96,0.00022191,2]
[363147076,1748598655203,-1515.47,0.00022191,2]
[363147077,1748598655212,-450.48,0.00022191,2]
[363147078,1748598655222,-1515.73,0.00022191,2]
[363147079,1748598655232,-315.04010749,0.00022191,2]
[363147080,1748598655242,-420.0,0.00022191,2]
[363147081,1748598655251,-690.65,0.00022191,2]
[363147082,1748598655262,-420.0,0.00022191,2]
[363147083,1748598655270,-443.69,0.00022191,2]
[363147084,1748598655277,-420.0,0.00022191,2]
[363147085,1748598655285,-300.0,0.00022191,2]
[363147086,1748598655294,-420.32,0.00022191,2]
[363147087,1748598655301,-1049.91,0.00022191,2]
[363147088,1748598655308,-420.0,0.00022191,2]
[363147089,1748598655317,-1988.68,0.00022191,2]
[363147090,1748598655327,-420.84,0.00022191,2]
[363147091,1748598655337,-476.15,0.00022191,2]
[363147092,1748598655347,-140097.14,0.00022191,2]